bitfinex/quotes_SOLUSD_20250728
["timestamp","ask_amount","ask_price","bid_price","bid_amount"]
[1753733281575,26.28432314,184.82,184.81,0.06]
[1753733281889,26.28432314,184.82,184.81,44.11641194]
[1753733281890,0.54120877,184.82,184.81,44.11641194]
[1753733282042,2.68903678,184.86,184.81,44.23641194]
[1753733282366,0.03,184.86,184.85,4.97641194]
[1753733282588,0.03,184.86,184.85,39.18]
[1753733286073,0.03,184.86,184.85,39.16]
[1753733286260,0.03,184.86,184.85,44.13641194]
[1753733287758,0.03,184.86,184.85,66.45088763]
[1753733287959,0.03,184.86,184.85,71.42729957]
[1753733289290,0.03,184.91,184.86,16.78468397]
[1753733289462,0.03,184.91,184.9,21.76109591]
[1753733289803,13.64928485,184.99,184.9,86.88109591]
[1753733289804,0.03,184.99,184.9,86.88109591]
[1753733289960,0.03,184.99,184.95,4.97641194]
[1753733290158,0.03,184.99,184.95,54.4796906]
[1753733290360,0.03,184.99,184.95,71.26437457]
[1753733290667,0.03,184.99,184.95,71.38437457]
[1753733291474,0.03,184.99,184.98,21.76109591]
[1753733291671,0.03,184.99,184.98,60.88109591]
[1753733292360,0.03,184.99,184.98,66.28708574]
[1753733292578,0.03,184.99,184.98,66.40708574]
[1753733293292,0.03,184.99,184.98,66.28708574]
[1753733293998,0.03,184.99,184.98,66.26708574]
[1753733294486,0.03,185.0,184.98,66.38708574]
[1753733294687,0.03,185.01,185.0,16.78468397]
[1753733295002,0.03,185.01,185.0,21.76109591]
[1753733295301,0.03,185.01,185.0,60.86109591]
[1753733295513,0.03,185.01,185.0,21.76109591]
[1753733295687,0.03,185.01,185.0,60.84109591]
[1753733296692,0.03,185.01,185.0,60.86109591]
[1753733297001,0.03,185.01,185.0,66.38650131]
[1753733297303,0.03,185.01,185.0,66.26650131]
[1753733299215,0.03,185.01,185.0,60.86109591]
[1753733299705,0.03,185.01,185.0,21.76109591]
[1753733299906,0.03,185.01,185.0,60.80109591]
[1753733300207,0.03,185.01,185.0,66.20650131]
[1753733300379,0.03,185.01,185.0,66.32650131]
[1753733300985,0.03,185.01,185.0,66.20650131]
[1753733301686,0.03,185.01,185.0,66.26650131]
[1753733302010,0.03,185.01,185.0,21.82109591]
[1753733302187,0.03,185.01,185.0,60.84109591]
[1753733302684,0.03,185.01,185.0,60.82109591]
[1753733302885,0.03,185.01,185.0,21.82109591]
[1753733303096,0.03,185.01,185.0,60.82109591]
[1753733304890,0.03,185.01,185.0,66.22650131]
[1753733305388,0.7,185.01,185.0,43.99641194]
[1753733305610,0.7,185.01,185.0,5.03641194]
[1753733305788,0.7,185.01,185.0,44.01641194]
[1753733306129,0.03,185.01,185.0,44.01641194]
[1753733306492,0.03,185.01,185.0,66.86704185]
[1753733306992,0.03,185.01,185.0,5.03641194]
[1753733307183,0.03,185.01,185.0,44.01641194]
[1753733307184,0.7,185.01,185.0,44.01641194]
[1753733308188,0.03,185.01,185.0,66.20650131]
[1753733309026,0.03,185.01,185.0,27.22650131]
[1753733309226,0.03,185.01,185.0,66.20650131]
[1753733309522,0.03,185.01,185.0,66.32650131]
[1753733310014,0.03,185.01,185.0,61.23008937]
[1753733310202,0.03,185.01,185.0,66.20650131]
[1753733310590,0.03,185.01,185.0,66.18650131]
[1753733310899,0.03,185.01,185.0,27.22650131]
[1753733311099,0.03,185.01,185.0,66.18650131]
[1753733311298,0.75,185.01,185.0,5.03641194]
[1753733311517,0.75,185.01,184.96,0.06]
[1753733311714,0.72,185.0,184.97,43.97641194]
[1753733311895,0.72,184.99,184.98,4.97641194]
[1753733312494,0.72,184.99,184.97,43.97641194]
[1753733312711,0.72,184.98,184.97,43.97641194]
[1753733313411,0.72,185.0,184.97,43.97641194]
[1753733313620,0.72,185.0,184.98,4.97641194]
[1753733313820,0.03,185.01,184.99,39.0]
[1753733314228,0.72,185.0,184.99,39.0]
[1753733314790,0.72,185.0,184.99,43.97641194]
[1753733315299,0.72,185.0,184.99,39.0]
[1753733317213,0.72,185.0,184.99,38.94]
[1753733318229,0.72,185.0,184.99,43.91641194]
[1753733318410,0.72,185.0,184.99,38.94]
[1753733319423,0.03,185.01,184.99,43.91641194]
[1753733319610,0.03,185.01,185.0,4.97641194]
[1753733319814,0.03,185.01,185.0,21.94109591]
[1753733320409,0.03,185.01,185.0,21.76109591]
[1753733320634,0.03,185.01,185.0,4.97641194]
[1753733320809,0.03,185.01,185.0,43.89641194]
[1753733321609,0.75,185.01,185.0,38.9]
[1753733323514,0.75,185.01,184.98,4.97641194]
[1753733323722,3.96716873,185.0,184.98,4.97641194]
[1753733323931,3.96716873,185.0,184.97,0.06]
[1753733323932,0.72,185.0,184.99,38.88]
[1753733324137,4.68869973,185.0,184.99,38.88]
[1753733325241,0.03,185.01,185.0,16.78468397]
[1753733325466,0.03,185.01,185.0,43.87641194]
[1753733325820,3.99949876,185.01,185.0,43.87641194]
[1753733326020,0.03,185.01,185.0,66.06650131]
[1753733326231,0.03,185.01,185.0,66.78704185]
[1753733327056,0.03,185.04,185.01,16.78468397]
[1753733327253,0.03,185.04,185.03,9.95282388]
[1753733327430,0.03,185.04,185.03,15.35735287]
[1753733327756,0.03,185.04,185.03,15.53735287]
[1753733328351,0.03,185.04,185.03,10.38094093]
[1753733331039,0.03,185.04,185.02,0.54048211]
[1753733331040,0.75,185.04,185.02,0.54048211]
[1753733331239,3.98701515,185.03,185.02,17.32516608]
[1753733331446,0.03,185.04,185.03,16.78468397]
[1753733331656,0.03,185.04,185.03,21.94109591]
[1753733332035,0.03,185.04,185.03,27.20183099]
[1753733332230,0.2,185.05,185.04,0.28432314]
[1753733332436,1e-08,185.05,185.04,66.78225468]
[1753733332941,1e-08,185.05,185.04,72.1864916]
[1753733335430,0.03,185.09,185.08,16.78468397]
[1753733335751,4.0280977,185.09,185.08,61.3014028]
[1753733336149,0.03,185.09,185.08,61.3014028]
[1753733336343,0.03,185.09,185.08,61.4814028]
[1753733337059,0.03,185.09,185.08,61.3014028]
[1753733337354,0.03,185.09,185.08,66.88447174]
[1753733337554,0.03,185.09,185.08,67.16879488]
[1753733338453,7.99276654,185.14,185.08,67.16879488]
[1753733338454,0.2,185.15,185.12,16.78468397]
[1753733338639,0.2,185.15,185.14,4.97641194]
[1753733340465,0.2,185.15,185.14,10.37772986]
[1753733341936,0.85,185.15,185.14,4.97641194]
[1753733342255,0.85,185.15,185.14,38.94]
[1753733343256,0.85,185.15,185.14,43.91641194]
[1753733343944,0.85,185.15,185.14,38.94]
[1753733344153,0.85,185.15,185.14,43.91641194]
[1753733344355,0.85,185.15,185.14,38.94]
[1753733347759,0.85,185.15,185.09,6.00297353]
[1753733347964,0.65,185.14,185.11,4.97641194]
[1753733348264,0.65,185.14,185.12,38.88]
[1753733349971,0.2,185.15,185.12,38.88]
[1753733350382,0.65,185.14,185.12,38.88]
[1753733350769,0.2,185.15,185.13,5.5165729]
[1753733350973,0.2,185.15,185.14,38.84]
[1753733351468,0.85,185.15,185.14,38.84]
[1753733353475,0.2,185.15,185.14,43.81641194]
[1753733353873,0.2,185.15,185.14,38.84]
[1753733354084,0.2,185.15,185.14,43.81641194]
[1753733354600,0.2,185.15,185.14,66.18241383]
[1753733355218,0.2,185.15,185.14,66.00241383]
[1753733355411,0.2,185.15,185.14,66.54254562]
[1753733355705,0.85,185.15,185.14,38.84]
[1753733355896,0.85,185.15,185.11,5.40210231]
[1753733356209,0.85,185.15,185.12,43.81641194]
[1753733356210,0.65,185.14,185.12,43.81641194]
[1753733359406,0.2,185.15,185.12,4.97641194]
[1753733359596,0.65,185.13,185.12,4.97641194]
[1753733359798,0.85,185.15,185.12,38.84]
[1753733360000,0.2,185.15,185.12,38.84]
[1753733360194,0.65,185.14,185.12,38.84]
[1753733360900,0.65,185.13,185.09,6.00298143]
[1753733361110,5.62641194,185.12,185.09,0.06]
[1753733361304,4.97641194,185.1,185.09,0.06]
[1753733361618,5.62641194,185.11,185.09,38.9]
[1753733361815,6.9505,185.13,185.09,43.87641194]
[1753733362117,0.65,185.13,185.09,49.27914443]
[1753733362411,0.65,185.12,185.09,44.41668964]
[1753733362593,0.65,185.11,185.09,44.41668964]
[1753733363311,0.65,185.11,185.09,49.8194345]
[1753733363809,0.65,185.13,185.09,49.8194345]
[1753733364022,31.60103481,185.15,185.1,21.76109591]
[1753733364023,0.85,185.15,185.1,21.76109591]
[1753733364224,0.85,185.15,185.11,39.38021932]
[1753733364391,0.65,185.14,185.11,39.38021932]
[1753733364792,0.2,185.15,185.11,39.38021932]
[1753733365002,0.85,185.15,185.11,44.35663126]
[1753733365412,0.65,185.14,185.11,44.35663126]
[1753733365711,0.65,185.14,185.11,39.38021932]
[1753733366810,0.2,185.15,185.13,4.97641194]
[1753733367017,0.2,185.15,185.11,44.78227511]
[1753733367018,0.2,185.15,185.14,44.35654373]
[1753733367211,0.2,185.15,185.14,61.1412277]
[1753733367612,0.2,185.15,185.14,61.3212277]
[1753733369109,0.2,185.15,185.14,66.72254562]
[1753733373031,0.2,185.15,185.14,66.54254562]
[1753733373402,0.89,185.15,185.14,66.54254562]
[1753733373830,0.2,185.15,185.14,66.54254562]
[1753733374141,0.2,185.15,185.14,66.72254562]
[1753733374342,0.2,185.15,185.14,66.54254562]
[1753733374543,0.2,185.15,185.14,22.72613368]
[1753733374544,0.89,185.15,185.14,22.72613368]
[1753733374839,0.89,185.15,185.14,61.02600189]
[1753733375000,0.89,185.15,185.14,66.00241383]
[1753733375215,0.89,185.15,185.14,66.54254562]
[1753733375425,0.2,185.15,185.14,66.54254562]
[1753733381310,0.89,185.15,185.14,27.70254562]
[1753733381632,0.89,185.15,185.14,38.82]
[1753733384910,0.89,185.15,185.14,44.22131792]
[1753733385328,0.89,185.15,185.14,38.82]
[1753733387540,5.86641194,185.15,185.14,38.82]
[1753733389139,17.69796092,185.15,185.14,38.82]
[1753733389312,17.69809184,185.15,185.14,38.82]
[1753733389510,13.69487004,185.15,185.14,38.82]
[1753733390322,17.69743071,185.15,185.14,38.82]
[1753733390638,13.69487004,185.15,185.14,38.82]
[1753733391035,17.69743071,185.15,185.14,38.82]
[1753733391732,17.69743071,185.15,185.09,0.06]
[1753733392041,10.09317361,185.14,185.1,38.82]
[1753733392338,4.97641194,185.11,185.1,38.82]
[1753733392541,5.66641194,185.11,185.1,38.82]
[1753733393844,0.69,185.11,185.1,38.82]
[1753733394429,4.97641194,185.12,185.1,38.82]
[1753733394744,5.66641194,185.12,185.1,38.82]
[1753733395322,4.97641194,185.13,185.1,38.82]
[1753733395516,5.66641194,185.13,185.1,38.82]
[1753733397454,26.0,185.14,185.1,38.82]
[1753733397455,5.66641194,185.12,185.1,38.82]
[1753733397614,4.97641194,185.12,185.1,38.82]
[1753733397816,0.69,185.11,185.1,38.82]
[1753733398742,4.97641194,185.12,185.1,38.82]
[1753733398944,4.97641194,185.14,185.1,38.82]
[1753733399152,31.66641194,185.14,185.1,44.2224851]
[1753733399346,5.66641194,185.14,185.1,44.2224851]
[1753733399544,0.69,185.13,185.1,38.82]
[1753733400141,4.97641194,185.14,185.1,38.82]
[1753733400347,4.97641194,185.11,185.1,38.82]
[1753733400641,0.69,185.11,185.1,38.82]
[1753733400841,4.97641194,185.12,185.1,38.82]
[1753733401149,0.67,185.12,185.1,38.82]
[1753733401356,5.64641194,185.12,185.1,38.82]
[1753733403048,4.97641194,185.12,185.1,38.82]
[1753733403249,0.67,185.11,185.1,38.82]
[1753733404055,0.67,185.11,185.09,0.06]
[1753733404056,5.64641194,185.11,185.09,0.06]
[1753733404260,4.97641194,185.1,185.09,0.06]
[1753733404432,5.64641194,185.1,185.09,38.88]
[1753733405137,11.04889708,185.1,185.09,38.88]
[1753733406237,11.59010585,185.1,185.09,38.88]
[1753733406439,18.07590585,185.1,185.09,38.88]
[1753733408561,12.67342071,185.1,185.09,38.88]
[1753733409068,26.0,185.07,185.05,0.06]
[1753733409237,31.51762071,185.06,185.05,0.06]
[1753733409443,32.18762071,185.06,185.05,0.06]
[1753733410344,37.59127357,185.06,185.05,0.06]
[1753733411765,32.18762071,185.06,185.05,0.06]
[1753733411956,4.97641194,185.06,185.05,0.06]
[1753733412962,11.59127357,185.06,185.05,0.06]
[1753733414472,11.87559671,185.06,185.05,0.06]
[1753733415270,37.87559671,185.06,185.05,0.06]
[1753733415956,32.18762071,185.06,185.05,0.06]
[1753733416164,31.64641194,185.06,185.05,0.06]
[1753733416465,30.97641194,185.06,185.05,0.06]
[1753733417171,31.64641194,185.06,185.05,0.06]
[1753733418670,37.33438794,185.06,185.05,0.06]
[1753733418866,186.33438794,185.06,185.05,0.06]
[1753733421061,191.31079988,185.06,185.05,0.06]
[1753733421856,175.0,185.06,185.05,0.06]
[1753733422065,179.97641194,185.06,185.05,0.06]
[1753733422456,186.33438794,185.06,185.05,0.06]
[1753733425063,165.31079988,185.06,185.05,0.06]
[1753733425373,180.93073508,185.06,185.05,0.06]
[1753733426176,186.33438794,185.06,185.05,0.06]
[1753733426968,169.28264706,185.06,185.05,0.06]
[1753733427146,26.0,185.03,185.01,0.06]
[1753733427351,5.80194385,185.02,185.01,0.06]
[1753733427550,10.44279718,185.02,185.01,0.06]
[1753733427751,4.97641194,184.98,184.97,0.06]
[1753733427975,5.80194385,184.98,184.97,0.06]
[1753733428273,6.47194385,184.98,184.97,0.06]
[1753733428653,11.87793368,184.98,184.97,0.06]
[1753733429055,5.51762071,184.98,184.97,0.06]
[1753733429877,31.40589296,184.99,184.97,0.06]
[1753733429878,4.97641194,184.99,184.97,0.06]
[1753733430059,4.97641194,185.0,184.97,0.36]
[1753733430856,4.97641194,185.0,184.97,0.06]
[1753733431195,4.97641194,184.98,184.97,0.06]
[1753733432192,31.95073508,184.98,184.97,0.06]
[1753733432483,32.49194385,184.98,184.97,0.06]
[1753733432853,37.89793368,184.98,184.97,0.06]
[1753733433053,41.86704931,184.98,184.97,0.06]
[1753733433461,41.86685134,184.98,184.97,0.06]
[1753733434963,0.28432314,184.97,184.96,0.06]
[1753733435160,35.91965274,184.97,184.96,0.06]
[1753733435455,8.9453296,184.97,184.96,0.06]
[1753733435657,0.54120877,184.98,184.96,0.06]
[1753733435658,4.97641194,184.98,184.96,0.06]
[1753733436090,5.51762071,184.97,184.96,0.06]
[1753733436259,6.49194385,184.97,184.96,0.06]
[1753733436782,10.45763605,184.97,184.96,0.06]
[1753733437165,15.86391814,184.97,184.96,0.06]
[1753733438572,0.54120877,185.0,184.96,0.36]
[1753733438780,153.97641194,185.01,184.97,0.3]
[1753733439100,153.97641194,185.01,184.98,0.3]
[1753733439869,5.40401068,185.05,184.99,4.97641194]
[1753733440095,3.96544949,185.04,185.01,4.97641194]
[1753733440259,4.97641194,185.06,185.02,0.3]
[1753733441189,31.51762071,185.07,185.02,0.3]
[1753733441388,0.03,185.09,185.03,5.27641194]
[1753733441779,5.00641194,185.09,185.03,5.27641194]
[1753733442164,5.51762071,185.08,185.02,10.38120374]
[1753733442369,4.97641194,185.08,185.02,10.38120374]
[1753733442567,4.97641194,185.08,185.03,4.97641194]
[1753733442794,4.97641194,185.08,185.03,5.27641194]
[1753733443591,5.54762071,185.09,185.04,5.27641194]
[1753733443771,0.03,185.09,185.05,44.07641194]
[1753733445387,0.03,185.09,185.05,38.8]
[1753733445388,5.69641194,185.09,185.05,38.8]
[1753733445702,5.66641194,185.08,185.05,38.8]
[1753733445901,0.03,185.09,185.05,43.77641194]
[1753733446509,0.03,185.09,185.05,38.8]
[1753733446806,1.26120877,185.09,185.05,38.8]
[1753733446983,0.69,185.08,185.05,38.8]
[1753733447177,5.66641194,185.07,185.05,38.8]
[1753733447593,11.06978763,185.07,185.05,38.8]
[1753733447817,0.69,185.06,185.05,38.8]
[1753733448588,5.66641194,185.06,185.05,38.8]
[1753733450405,0.54120877,185.07,185.05,38.8]
[1753733450581,4.97641194,185.07,185.05,38.8]
[1753733451105,4.97641194,185.08,185.05,38.8]
[1753733452393,0.03,185.09,185.06,0.3]
[1753733452791,0.03,185.09,185.07,0.3]
[1753733453008,0.03,185.09,185.07,5.27641194]
[1753733453214,0.03,185.09,185.08,0.3]
[1753733454590,0.03,185.09,185.08,5.27641194]
[1753733456507,5.69641194,185.09,185.01,22.60160723]
[1753733456721,4.97641194,185.08,185.02,43.75641194]
[1753733457516,5.66641194,185.07,185.02,38.78]
[1753733457722,0.69,185.06,185.02,38.78]
[1753733458690,4.97641194,185.07,185.02,39.08]
[1753733459498,5.66641194,185.07,185.02,39.08]
[1753733460303,5.66641194,185.07,185.02,38.78]
[1753733460820,6.09340857,185.07,185.02,38.78]
[1753733461019,4.97641194,185.06,185.02,38.78]
[1753733461423,5.65641194,185.05,185.02,38.78]
[1753733461712,0.68,185.04,185.02,38.78]
[1753733461921,4.97641194,185.05,185.02,38.78]
[1753733462113,11.06037555,185.05,185.02,38.78]
[1753733462432,5.65641194,185.04,185.02,38.78]
[1753733462604,4.97641194,185.04,185.02,38.78]
[1753733462939,5.65641194,185.03,185.02,38.78]
[1753733464026,4.97641194,185.05,185.02,38.78]
[1753733464533,153.97641194,185.06,185.02,38.78]
[1753733464694,159.38016856,185.06,185.02,38.78]
[1753733465104,160.06016856,185.06,185.02,38.78]
[1753733465329,5.65641194,185.05,185.02,38.78]
[1753733466294,4.97641194,185.04,185.02,38.78]
[1753733466498,5.65641194,185.04,185.02,38.78]
[1753733466726,5.9452437,185.05,184.97,0.06]
[1753733466727,6.19762071,185.03,184.97,0.06]
[1753733466930,4.97641194,185.0,184.98,38.78]
[1753733467119,4.97641194,185.01,184.98,38.78]
[1753733467701,5.65641194,185.01,184.98,38.78]
[1753733468016,5.65641194,185.0,184.98,38.78]
[1753733468219,11.60331831,184.99,184.98,38.78]
[1753733468937,0.54120877,184.99,184.98,38.78]
[1753733469114,149.0,185.02,184.98,44.05641194]
[1753733469301,4.97641194,185.0,184.97,0.06]
[1753733469500,4.97641194,185.0,184.98,38.78]
[1753733469697,0.28432314,184.98,184.97,0.06]
[1753733469917,4.97641194,184.98,184.97,0.06]
[1753733470125,11.34672491,184.98,184.97,0.06]
[1753733470731,37.34672491,184.98,184.97,0.06]
[1753733470942,37.88793368,184.98,184.97,0.06]
[1753733471507,37.88793368,184.98,184.96,0.06]
[1753733471508,26.28432314,184.97,184.96,0.06]
[1753733471716,36.91714702,184.97,184.96,0.06]
[1753733472007,26.0,184.88,184.75,4.97641194]
[1753733472323,26.0,184.88,184.71,13.53459223]
[1753733472324,4.97641194,184.82,184.77,5.89210696]
[1753733472500,4.97641194,184.8,184.77,0.48]
[1753733472707,4.97641194,184.78,184.75,39.02]
[1753733472905,8.13484893,184.76,184.75,39.02]
[1753733473107,8.81484893,184.76,184.67,0.48]
[1753733473327,8.13484893,184.71,184.68,39.04]
[1753733473531,29.43759243,184.76,184.68,39.04]
[1753733473532,28.75759243,184.76,184.7,8.13484893]
[1753733473741,0.54120877,184.79,184.71,8.61484893]
[1753733473915,34.13484893,184.78,184.72,8.13484893]
[1753733474123,8.13484893,184.77,184.73,39.06]
[1753733475222,0.54120877,184.77,184.73,39.06]
[1753733475417,0.68,184.76,184.73,39.06]
[1753733475626,8.13484893,184.74,184.73,39.06]
[1753733475933,8.81484893,184.74,184.73,39.06]
[1753733476130,8.81484893,184.74,184.69,39.06]
[1753733476330,8.13484893,184.71,184.69,39.06]
[1753733476648,8.13484893,184.72,184.69,39.06]
[1753733477227,8.13484893,184.7,184.69,39.06]
[1753733477432,8.13484893,184.72,184.69,39.06]
[1753733478720,8.13484893,184.72,184.69,39.12]
[1753733479340,8.13484893,184.7,184.69,39.12]
[1753733479546,8.13484893,184.71,184.69,39.12]
[1753733479852,0.68,184.72,184.69,39.12]
[1753733479853,0.68337034,184.74,184.69,39.12]
[1753733480142,8.13484893,184.74,184.7,0.48]
[1753733480334,8.13484893,184.73,184.7,0.48]
[1753733481049,8.13484893,184.73,184.69,44.53442293]
[1753733481230,8.13484893,184.73,184.69,45.01442293]
[1753733481619,8.13484893,184.74,184.69,44.53442293]
[1753733481852,8.13484893,184.73,184.69,44.53442293]
[1753733482150,8.13484893,184.74,184.69,45.01442293]
[1753733482645,8.13484893,184.73,184.69,44.53446898]
[1753733483441,8.13484893,184.7,184.69,0.06]
[1753733483649,39.01155209,184.7,184.69,0.06]
[1753733483850,26.0,184.67,184.59,0.48]
[1753733484146,8.13484893,184.63,184.6,39.04]
[1753733484343,8.13484893,184.64,184.6,39.04]
[1753733484555,8.13484893,184.65,184.61,5.41682465]
[1753733484720,0.54120877,184.66,184.62,0.54]
[1753733484721,8.13484893,184.66,184.62,0.54]
[1753733484917,8.13484893,184.67,184.62,8.13484893]
[1753733485121,8.13484893,184.67,184.63,0.54]
[1753733485391,8.13484893,184.66,184.61,13.55167358]
[1753733485522,8.13484893,184.65,184.62,39.04]
[1753733486343,8.13484893,184.63,184.62,39.04]
[1753733487125,0.54120877,184.64,184.62,39.04]
[1753733487338,8.13484893,184.63,184.62,39.04]
[1753733487655,0.28432314,184.62,184.58,39.04]
[1753733487820,8.13484893,184.59,184.58,39.04]
[1753733488026,8.81484893,184.59,184.58,39.04]
[1753733488532,9.09917207,184.59,184.58,39.04]
[1753733488856,8.13484893,184.59,184.58,39.04]
[1753733489022,26.54120877,184.63,184.58,39.58]
[1753733489234,8.6760577,184.62,184.58,39.04]
[1753733489559,8.6760577,184.63,184.58,47.17484893]
[1753733489861,8.13484893,184.61,184.59,39.04]
[1753733490069,8.13484893,184.61,184.6,39.04]
[1753733490279,8.81484893,184.61,184.6,39.04]
[1753733490640,12.7006669,184.61,184.6,39.04]
[1753733490970,12.0206669,184.61,184.6,39.04]
[1753733491737,0.28432314,184.6,184.54,5.5188181]
[1753733491938,8.13484893,184.57,184.55,39.02]
[1753733492168,3.88230773,184.56,184.55,39.02]
[1753733492364,3.88012481,184.56,184.55,39.02]
[1753733493773,0.54120877,184.63,184.55,53.11343467]
[1753733493972,3.87741539,184.62,184.59,8.13484893]
[1753733494138,0.54120877,184.64,184.6,39.16]
[1753733494337,0.54120877,184.64,184.6,47.29484893]
[1753733494532,34.6760577,184.65,184.6,47.29484893]
[1753733494733,8.79484893,184.67,184.6,5.41706747]
[1753733494965,1.34337034,184.66,184.58,8.13484893]
[1753733495244,1.34337034,184.66,184.54,14.18881305]
[1753733495245,26.0,184.56,184.54,0.1]
[1753733495430,9.62038084,184.55,184.54,0.1]
[1753733495840,9.3360577,184.55,184.54,0.1]
[1753733496061,8.13484893,184.55,184.54,0.1]
[1753733496770,8.79484893,184.55,184.54,0.1]
[1753733497464,0.28432314,184.51,184.41,6.4628]
[1753733497656,0.28432314,184.51,184.4,1.5655]
[1753733497657,8.13484893,184.47,184.42,47.29484893]
[1753733498052,8.79484893,184.47,184.42,47.29484893]
[1753733498256,8.13484893,184.47,184.42,47.29484893]
[1753733498450,9.3360577,184.46,184.43,39.16]
[1753733498662,8.6760577,184.46,184.43,39.16]
[1753733500443,0.54120877,184.46,184.43,39.16]
[1753733500654,0.54120877,184.53,184.47,5.42093565]
[1753733500843,8.6760577,184.55,184.5,8.13484893]
[1753733501057,34.6760577,184.55,184.5,8.13484893]
[1753733501557,8.6760577,184.55,184.5,8.13484893]
[1753733501753,8.6760577,184.56,184.51,8.13484893]
[1753733501949,8.6760577,184.56,184.52,39.14]
[1753733501950,9.3360577,184.56,184.52,39.14]
[1753733502267,8.6760577,184.56,184.52,39.14]
[1753733502570,8.41917207,184.53,184.52,39.14]
[1753733502869,15.03955387,184.53,184.52,39.14]
[1753733503443,0.28432314,184.52,184.5,39.14]
[1753733503674,8.6760577,184.51,184.5,39.14]
[1753733504175,9.3360577,184.51,184.5,39.14]
[1753733504685,8.6760577,184.51,184.5,39.14]
[1753733505949,13.48869199,184.51,184.5,39.14]
[1753733506147,18.90845243,184.51,184.5,39.14]
[1753733506350,18.90845243,184.51,184.46,39.14]
[1753733506560,8.13484893,184.47,184.46,39.14]
[1753733506771,12.00316008,184.47,184.46,39.14]
[1753733507078,12.66316008,184.47,184.46,39.14]
[1753733507452,3.86831115,184.47,184.46,39.14]
[1753733508162,3.86831115,184.47,184.46,47.27484893]
[1753733508368,3.86831115,184.47,184.46,39.14]
[1753733508569,3.86831115,184.47,184.41,30.34104999]
[1753733508570,18.62543069,184.47,184.35,0.2]
[1753733508863,38.00316008,184.46,184.41,8.13484893]
[1753733509071,12.54436885,184.45,184.42,39.36]
[1753733509259,3.86831115,184.44,184.42,39.36]
[1753733509451,9.3360577,184.45,184.42,39.36]
[1753733509452,3.86831115,184.43,184.42,39.36]
[1753733509766,3.86831115,184.43,184.42,47.49484893]
[1753733509950,3.86831115,184.43,184.42,39.36]
[1753733510653,3.86831115,184.43,184.42,69.80193827]
[1753733510845,8.13484893,184.52,184.42,70.3441788]
[1753733511154,3.87797725,184.51,184.47,8.13484893]
[1753733511473,3.87797725,184.5,184.48,39.34]
[1753733511700,3.87797725,184.49,184.48,39.34]
[1753733511984,3.87797725,184.49,184.48,47.47484893]
[1753733512972,3.87797725,184.49,184.48,47.57484893]
[1753733513197,8.13484893,184.56,184.49,5.42034798]
[1753733513363,7.78675359,184.55,184.51,8.13484893]
[1753733513562,7.78675359,184.54,184.52,47.47484893]
[1753733513888,7.78675359,184.53,184.52,47.47484893]
[1753733514059,8.44675359,184.53,184.52,39.34]
[1753733514260,8.98796236,184.53,184.52,39.34]
[1753733514465,17.12281129,184.53,184.52,39.34]
[1753733514874,8.98796236,184.53,184.52,39.34]
[1753733515362,8.32796236,184.53,184.52,47.47484893]
[1753733515579,7.7993297,184.53,184.52,47.57484893]
[1753733515783,7.7993297,184.53,184.48,16.78468397]
[1753733515784,8.4593297,184.53,184.48,1.5481]
[1753733516086,8.4593297,184.52,184.49,39.36]
[1753733516264,7.7993297,184.51,184.49,39.36]
[1753733516459,7.7993297,184.5,184.49,39.36]
[1753733516889,7.7993297,184.5,184.49,64.3795329]
[1753733517059,3.89338334,184.5,184.49,64.3795329]
[1753733517262,7.8088069,184.5,184.49,69.79988088]